bitfinex/quotes_BTCUSD_20220307
["timestamp","ask_amount","ask_price","bid_price","bid_amount"]
[1646627023488,0.21412951,37921.0,37917.0,0.00010985]
[1646627023988,0.26863323,37924.0,37917.0,0.00010985]
[1646627024389,0.028747,37923.0,37917.0,0.00010985]
[1646627024589,0.26863323,37924.0,37916.0,0.17643]
[1646627024788,0.26863323,37924.0,37919.0,0.00010984]
[1646627024789,0.028747,37923.0,37919.0,0.00010984]
[1646627025592,0.028747,37923.0,37916.0,0.17643]
[1646627025790,0.26863323,37924.0,37919.0,0.00010998]
[1646627026032,0.028747,37923.0,37919.0,0.00010998]
[1646627026934,0.26863323,37924.0,37916.0,0.17643]
[1646627027235,0.028747,37923.0,37919.0,0.00010998]
[1646627027434,0.26863323,37924.0,37919.0,0.00010998]
[1646627027636,0.028747,37923.0,37919.0,0.00010998]
[1646627028035,0.028747,37923.0,37916.0,0.17643]
[1646627028235,0.26863323,37924.0,37919.0,0.00010998]
[1646627028835,0.028747,37923.0,37919.0,0.00010998]
[1646627029036,0.028747,37921.0,37919.0,0.00010998]
[1646627029237,0.028747,37923.0,37916.0,0.15]
[1646627029435,0.028747,37923.0,37919.0,0.00010995]
[1646627030502,0.26863323,37924.0,37916.0,0.15]
[1646627030693,0.26863323,37924.0,37919.0,0.00010995]
[1646627030694,0.028747,37923.0,37919.0,0.00010995]
[1646627031694,0.028747,37923.0,37916.0,0.15]
[1646627031898,0.028747,37923.0,37919.0,0.00010995]
[1646627032094,0.21473259,37923.0,37919.0,0.00010995]
[1646627032594,0.21473259,37923.0,37914.0,0.06269061]
[1646627032793,0.21473259,37922.0,37914.0,0.06269061]
[1646627033638,0.21473259,37922.0,37915.0,0.17915145]
[1646627034237,0.028747,37919.0,37915.0,0.05]
[1646627034439,0.40768736,37919.0,37911.0,0.1158]
[1646627034642,0.62241995,37919.0,37911.0,0.1158]
[1646627034938,0.62241995,37919.0,37905.0,0.6084]
[1646627034939,0.028747,37916.0,37905.0,0.6084]
[1646627035139,0.028747,37914.0,37907.0,0.22254998]
[1646627035337,0.028747,37912.0,37905.0,0.77151846]
[1646627035541,0.0529,37911.0,37905.0,0.58301846]
[1646627035740,0.0529,37910.0,37905.0,0.58301846]
[1646627036039,0.0529,37909.0,37905.0,0.58301846]
[1646627036237,0.0529,37909.0,37907.0,0.63717947]
[1646627036437,0.0529,37909.0,37908.0,0.66154889]
[1646627037039,0.21473259,37919.0,37916.0,0.35398799]
[1646627037291,0.0529,37918.0,37913.0,0.13193331]
[1646627037686,0.0529,37918.0,37914.0,0.05]
[1646627038090,0.0529,37918.0,37914.0,0.05013444]
[1646627038386,0.0529,37918.0,37914.0,0.00013444]
[1646627038991,0.0529,37918.0,37913.0,0.21574293]
[1646627038992,0.0569,37918.0,37913.0,0.21574293]
[1646627039189,0.0569,37918.0,37914.0,0.00013444]
[1646627040089,0.0569,37918.0,37913.0,0.21574293]
[1646627040288,0.0529,37918.0,37914.0,0.00013444]
[1646627041135,0.0559,37918.0,37914.0,0.00013444]
[1646627041336,0.0559,37918.0,37913.0,0.21574293]
[1646627041546,0.0559,37918.0,37914.0,0.06608568]
[1646627041737,0.0559,37918.0,37917.0,0.19137086]
[1646627042543,0.003,37918.0,37917.0,0.63131686]
[1646627042738,0.21473259,37924.0,37917.0,0.91044782]
[1646627042941,0.21473259,37925.0,37922.0,0.21845814]
[1646627043441,0.21473259,37925.0,37919.0,0.19786637]
[1646627043838,0.028747,37924.0,37919.0,0.19786637]
[1646627044239,0.21473259,37925.0,37919.0,0.13191091]
[1646627044440,0.59357513,37927.0,37918.0,0.21175088]
[1646627044441,0.24347959,37924.0,37918.0,0.21175088]
[1646627044892,0.24347959,37924.0,37917.0,0.24137086]
[1646627045093,0.24847959,37924.0,37917.0,0.24149187]
[1646627045896,0.24847959,37924.0,37917.0,0.42946715]
[1646627046296,0.24347959,37924.0,37917.0,0.24149187]
[1646627046796,0.24347959,37924.0,37917.0,0.05012101]
[1646627046996,0.24747959,37924.0,37917.0,0.05012101]
[1646627047195,0.24747959,37924.0,37917.0,0.00012101]
[1646627047397,0.24747959,37924.0,37914.0,0.41188285]
[1646627047798,0.16900806,37923.0,37917.0,0.00012101]
[1646627048000,0.028747,37922.0,37917.0,0.00012101]
[1646627048398,0.028747,37921.0,37917.0,0.00012101]
[1646627048644,0.028747,37922.0,37914.0,0.49330728]
[1646627048840,0.028747,37922.0,37917.0,0.00012081]
[1646627049742,0.028747,37922.0,37914.0,0.49330728]
[1646627049945,0.028747,37922.0,37917.0,0.00012081]
[1646627050745,0.24347959,37922.0,37917.0,0.00012081]
[1646627050943,0.24347959,37922.0,37914.0,0.31299641]
[1646627051149,0.24747959,37922.0,37917.0,0.00012081]
[1646627051746,0.028747,37918.0,37917.0,0.00012081]
[1646627051946,0.3536889,37918.0,37917.0,0.00012081]
[1646627052145,0.3536889,37918.0,37910.0,0.1173]
[1646627052395,0.028747,37916.0,37907.0,0.1837]
[1646627052593,0.028747,37914.0,37906.0,0.21027816]
[1646627052794,0.0529,37913.0,37906.0,0.21027816]
[1646627052994,0.0529,37912.0,37906.0,0.21027816]
[1646627053193,0.0529,37912.0,37906.0,0.39727449]
[1646627053800,0.0529,37912.0,37907.0,0.05]
[1646627057236,0.0529,37912.0,37908.0,0.00013413]
[1646627057838,0.0549,37912.0,37908.0,0.00013413]
[1646627058236,0.0549,37912.0,37911.0,0.19846398]
[1646627058237,0.0529,37912.0,37911.0,0.19846398]
[1646627058637,0.21473259,37916.0,37911.0,0.19846398]
[1646627058839,0.21473259,37917.0,37911.0,0.19846398]
[1646627059041,0.21473259,37917.0,37912.0,0.06597148]
[1646627059240,0.21473259,37918.0,37912.0,0.06597148]
[1646627059439,0.21473259,37918.0,37914.0,0.19213812]
[1646627059895,0.028747,37917.0,37913.0,0.32507601]
[1646627060092,0.21473259,37918.0,37913.0,0.00013411]
[1646627060692,0.46263323,37920.0,37913.0,0.00013411]
[1646627060693,0.21473259,37917.0,37913.0,0.4568839]
[1646627060893,0.21473259,37918.0,37914.0,0.00011902]
[1646627061101,0.005,37918.0,37914.0,0.00011902]
[1646627061493,0.21973259,37918.0,37914.0,0.00011902]
[1646627061696,0.005,37918.0,37915.0,0.16888803]
[1646627061894,0.005,37918.0,37915.0,0.23485303]
[1646627062192,0.005,37918.0,37915.0,0.115965]
[1646627062393,0.21473259,37919.0,37915.0,0.115965]
[1646627062695,0.21473259,37919.0,37912.0,0.06597148]
[1646627063094,0.21473259,37918.0,37912.0,0.06597148]
[1646627063295,0.21473259,37918.0,37914.0,0.17757471]
[1646627063532,0.21473259,37917.0,37914.0,0.17757471]
[1646627064032,0.21473259,37917.0,37914.0,0.24354471]
[1646627064234,0.21473259,37917.0,37914.0,0.29354471]
[1646627066434,0.21473259,37917.0,37914.0,0.06597]
[1646627067034,0.21873259,37917.0,37914.0,0.06597]
[1646627067693,0.004,37917.0,37914.0,0.27663492]
[1646627068292,0.21473259,37918.0,37914.0,0.27663492]
[1646627068893,0.21473259,37919.0,37914.0,0.27663492]
[1646627069093,0.21473259,37918.0,37914.0,0.27663492]
[1646627069895,0.21473259,37919.0,37914.0,0.27663492]
[1646627070694,0.21473259,37918.0,37914.0,0.27663492]
[1646627071146,0.21473259,37918.0,37914.0,0.21066492]
[1646627072146,0.19973259,37918.0,37914.0,0.21066492]
[1646627072547,0.19973259,37918.0,37914.0,0.27663492]
[1646627073047,0.19973259,37918.0,37914.0,0.34259992]
[1646627073447,0.19973259,37918.0,37915.0,0.05]
[1646627074248,0.19973259,37918.0,37914.0,0.32663492]
[1646627074647,0.19973259,37918.0,37914.0,0.26066492]
[1646627075105,0.005,37919.0,37914.0,0.26066492]
[1646627075905,1.15263323,37921.0,37914.0,0.26066492]
[1646627076309,0.884,37921.0,37915.0,0.29892212]
[1646627076508,0.884,37921.0,37915.0,0.34892212]
[1646627076706,0.884,37921.0,37915.0,0.11597]
[1646627077306,0.884,37921.0,37917.0,0.25437299]
[1646627077506,0.884,37921.0,37917.0,0.37032994]
[1646627079935,0.884,37921.0,37920.0,0.18178813]
[1646627080334,0.884,37921.0,37920.0,0.23178813]
[1646627081535,0.884,37921.0,37920.0,0.05]
[1646627081736,0.884,37921.0,37917.0,0.11595695]
[1646627081936,0.884,37921.0,37917.0,0.06595695]
[1646627082138,0.21489774,37920.0,37917.0,0.06595695]
[1646627083013,0.21989774,37920.0,37917.0,0.06595695]
[1646627083813,0.005,37920.0,37917.0,0.06595695]
[1646627084214,1.09889774,37921.0,37917.0,0.06595695]
[1646627084919,1.10689774,37921.0,37917.0,0.06595695]
[1646627085118,1.10689774,37921.0,37916.0,0.1819139]
[1646627085317,0.21489774,37919.0,37916.0,0.1819139]
[1646627086242,0.028747,37918.0,37916.0,0.1819139]
[1646627086443,0.21489774,37919.0,37913.0,0.05]
[1646627086444,0.29654474,37917.0,37913.0,0.05]
[1646627086643,0.29654474,37917.0,37912.0,0.00010924]
[1646627086844,0.028747,37915.0,37912.0,0.00010924]
[1646627087047,0.21489774,37916.0,37909.0,0.1653]
[1646627087243,0.24364474,37915.0,37912.0,0.00010924]
[1646627087452,0.21489774,37915.0,37912.0,0.00010924]
[1646627087843,0.21489774,37916.0,37912.0,0.00010924]
[1646627088243,0.47194697,37917.0,37912.0,0.06597994]
[1646627088543,0.47194697,37917.0,37912.0,0.06608918]
[1646627088744,0.26779774,37917.0,37912.0,0.06608918]
[1646627089343,0.26779774,37917.0,37914.0,0.17973275]
[1646627089543,0.26779774,37917.0,37913.0,0.065974]
[1646627089790,0.0529,37917.0,37913.0,0.065974]
[1646627090489,0.0529,37917.0,37913.0,0.27027962]
[1646627090791,1.04718,37921.0,37913.0,0.27027962]
[1646627090792,0.21489774,37919.0,37913.0,0.27027962]
[1646627091489,0.21489774,37919.0,37913.0,0.33624662]
[1646627091789,0.21489774,37919.0,37913.0,0.38624662]
[1646627092692,0.21489774,37919.0,37913.0,0.29463853]
[1646627093290,0.21489774,37919.0,37913.0,0.36060553]
[1646627093546,1.15263323,37921.0,37913.0,0.36060553]
[1646627093547,0.21489774,37920.0,37913.0,0.36060553]
[1646627093748,0.21489774,37919.0,37914.0,0.389946]
[1646627093948,0.21489774,37920.0,37914.0,0.389946]
[1646627094148,0.21489774,37920.0,37913.0,0.36060553]
[1646627094348,0.21489774,37919.0,37913.0,0.36060553]
[1646627094548,0.21489774,37920.0,37914.0,0.389946]
[1646627094748,0.21489774,37920.0,37913.0,0.36060553]
[1646627096050,1.09889774,37921.0,37913.0,0.57537435]
[1646627096250,0.21489774,37921.0,37913.0,0.57537435]
[1646627097492,0.21489774,37921.0,37913.0,0.36060553]
[1646627097690,0.21489774,37920.0,37913.0,0.09033291]
[1646627097893,0.028747,37918.0,37913.0,0.09033291]
[1646627098195,0.028747,37914.0,37912.0,0.00010924]
[1646627098391,0.0529,37913.0,37912.0,0.00010924]
[1646627098589,0.081647,37913.0,37912.0,0.00010924]
[1646627098988,0.081647,37913.0,37906.0,0.42504698]
[1646627098989,0.50934676,37913.0,37906.0,0.42504698]
[1646627099190,0.50934676,37913.0,37911.0,0.00010924]
[1646627099388,0.29444902,37913.0,37911.0,0.06609724]
[1646627099590,0.084647,37913.0,37911.0,0.06609724]
[1646627099792,0.0559,37913.0,37911.0,0.06609724]
[1646627100190,0.0559,37913.0,37911.0,0.19793891]
[1646627100393,0.0529,37913.0,37911.0,0.19793891]
[1646627101938,0.028747,37912.0,37911.0,0.19793891]
[1646627102138,0.0529,37913.0,37911.0,0.19793891]
[1646627102942,0.0559,37913.0,37911.0,0.19793891]
[1646627104339,0.0529,37913.0,37911.0,0.19793891]
[1646627104989,0.0569,37913.0,37911.0,0.19793891]
[1646627105592,0.21489774,37915.0,37911.0,0.19793891]
[1646627106193,0.21489774,37916.0,37911.0,0.19793891]
[1646627106494,0.21489774,37916.0,37911.0,0.38160712]
[1646627107292,0.26779774,37916.0,37911.0,0.38160712]
[1646627107492,0.26779774,37916.0,37911.0,0.38149788]
[1646627107696,0.26779774,37916.0,37912.0,0.00010924]
[1646627108742,0.26779774,37916.0,37912.0,0.131936]
[1646627108943,0.0529,37916.0,37912.0,0.18204524]
[1646627109240,0.26863323,37919.0,37912.0,0.18204524]
[1646627109541,0.26863323,37919.0,37912.0,0.17898971]
[1646627109840,0.26863323,37919.0,37912.0,0.17888047]
[1646627110139,0.26863323,37919.0,37912.0,0.17898971]
[1646627110540,0.41863323,37919.0,37912.0,0.17898971]
[1646627110743,0.41863323,37919.0,37913.0,0.06597457]
[1646627111144,0.42363323,37919.0,37913.0,0.06597457]
[1646627111840,0.27363323,37919.0,37913.0,0.06597457]
[1646627112289,0.028747,37918.0,37913.0,0.06597457]
[1646627112488,0.26863323,37919.0,37913.0,0.06597457]
[1646627113091,0.27363323,37919.0,37913.0,0.06597457]
[1646627113301,0.028747,37918.0,37913.0,0.06597457]
[1646627113491,0.028747,37918.0,37911.0,0.37987391]
[1646627113492,0.028747,37917.0,37911.0,0.37987391]
[1646627113691,0.41863323,37918.0,37912.0,0.00010924]
[1646627113892,0.15,37918.0,37912.0,0.00010924]
[1646627114091,0.41863323,37918.0,37912.0,0.00010924]
[1646627114293,0.028747,37917.0,37912.0,0.00010924]
[1646627114492,0.0529,37917.0,37912.0,0.00010924]
[1646627114695,0.0529,37917.0,37911.0,0.24793891]
[1646627114895,0.028747,37916.0,37912.0,0.00010924]
[1646627115094,0.081647,37915.0,37912.0,0.00010924]
[1646627115292,0.028747,37914.0,37912.0,0.00010924]
[1646627115694,0.028747,37914.0,37912.0,0.05010924]
[1646627115897,0.028747,37914.0,37912.0,0.05]
[1646627116145,0.028747,37914.0,37911.0,0.06609724]
[1646627116146,0.0529,37913.0,37911.0,0.06609724]
[1646627116945,0.028747,37912.0,37911.0,0.06609724]
[1646627117244,0.028747,37912.0,37911.0,0.065988]
[1646627117445,0.178747,37912.0,37911.0,0.065988]
[1646627117644,0.231647,37912.0,37910.0,0.05010924]
[1646627117845,0.231647,37912.0,37910.0,0.00010924]
[1646627118345,0.54907456,37912.0,37907.0,0.05]
[1646627118546,0.42338341,37910.0,37909.0,0.00010924]
[1646627118746,0.47628341,37910.0,37909.0,0.00010924]
[1646627119244,0.26491935,37910.0,37909.0,0.00010924]
[1646627119446,0.26491935,37910.0,37907.0,0.05]
[1646627119646,0.028747,37909.0,37908.0,0.00010925]
[1646627119901,0.081647,37909.0,37908.0,0.00010925]
[1646627120700,0.081647,37909.0,37907.0,0.05]
[1646627120701,0.54907456,37909.0,37907.0,0.05]
[1646627120897,0.31742756,37908.0,37907.0,0.00010925]
[1646627121100,0.39907456,37908.0,37907.0,0.00010925]
[1646627121496,0.60601843,37908.0,37907.0,0.00010925]
[1646627121997,0.60601843,37908.0,37906.0,0.21027816]
[1646627121998,0.028747,37907.0,37906.0,0.21038741]
[1646627122199,0.39907456,37907.0,37906.0,0.21038741]
[1646627122596,0.95,37906.0,37905.0,0.10675277]
[1646627122797,1.031647,37906.0,37905.0,0.10675277]
[1646627122996,0.081647,37906.0,37905.0,0.10675277]
[1646627124638,0.081647,37906.0,37905.0,0.05]
[1646627124839,0.028747,37905.0,37904.0,0.067001]
[1646627125640,0.178747,37905.0,37904.0,0.067001]
[1646627126041,0.178747,37905.0,37904.0,0.001]
[1646627129195,0.31997098,37909.0,37904.0,0.001]
[1646627129396,0.46113,37916.0,37905.0,0.06599267]
[1646627129397,0.0529,37908.0,37905.0,0.06599267]
[1646627129695,0.59670983,37912.0,37905.0,0.06599267]
[1646627129696,0.0529,37907.0,37905.0,0.06599267]
[1646627133645,0.0569,37907.0,37905.0,0.06599267]
[1646627134048,0.0569,37907.0,37905.0,0.11599267]
[1646627134907,0.0529,37907.0,37905.0,0.11599267]
[1646627136503,0.26724331,37912.0,37905.0,0.11599267]
[1646627137704,0.27124331,37912.0,37905.0,0.11610098]
[1646627138752,0.27124331,37912.0,37905.0,0.11599267]
[1646627138953,0.26724331,37912.0,37905.0,0.11610187]
[1646627139754,0.27124331,37912.0,37905.0,0.06610187]
[1646627139954,0.27124331,37912.0,37904.0,0.001]
[1646627139955,0.22052928,37910.0,37904.0,0.001]
[1646627140255,0.3704076,37909.0,37905.0,0.0001092]
[1646627141154,0.3704076,37909.0,37904.0,0.001]
[1646627141357,0.3704076,37909.0,37905.0,0.0001092]
[1646627141556,0.0529,37909.0,37905.0,0.0001092]
[1646627141756,0.3704076,37909.0,37905.0,0.0001092]
[1646627142160,0.0529,37909.0,37905.0,0.0001092]
[1646627142397,0.0529,37909.0,37905.0,0.000109]
[1646627142595,0.58475091,37909.0,37905.0,0.000109]
[1646627142997,0.0529,37909.0,37905.0,0.000109]
[1646627143398,0.0529,37909.0,37904.0,0.001]
[1646627143600,0.0569,37909.0,37905.0,0.000109]
[1646627144597,0.0569,37909.0,37904.0,0.066998]
[1646627144801,0.0569,37909.0,37905.0,0.000109]
[1646627145398,0.0569,37909.0,37905.0,0.20027143]
[1646627145797,0.0569,37909.0,37905.0,0.05]
[1646627146043,0.0569,37909.0,37907.0,0.00018457]
[1646627146245,0.0569,37909.0,37907.0,0.05018457]
[1646627147447,0.0529,37909.0,37907.0,0.05018457]
[1646627148245,0.21434331,37910.0,37907.0,0.05018457]
[1646627148446,0.26863323,37913.0,37908.0,0.25603234]
[1646627148447,0.21434331,37911.0,37908.0,0.25603234]
[1646627148847,0.21434331,37912.0,37910.0,0.21278711]
[1646627149047,0.21434331,37913.0,37910.0,0.32876611]
[1646627149548,0.6059,37921.0,37920.0,22.71745861]
[1646627149807,0.6059,37921.0,37920.0,22.00062695]
[1646627149808,1.8443197,37921.0,37920.0,22.00062695]
[1646627150017,2.0443197,37921.0,37920.0,22.00062695]
[1646627150205,1.9940557,37921.0,37920.0,22.00062695]
[1646627150507,1.68273152,37921.0,37920.0,22.16887074]
[1646627150910,1.68273152,37921.0,37920.0,22.00062695]
[1646627151606,1.86903974,37921.0,37920.0,22.00062695]
[1646627151807,1.68273152,37921.0,37920.0,22.00062695]
[1646627152006,1.65746752,37921.0,37920.0,22.00062695]
[1646627152207,1.44403,37921.0,37920.0,22.22433957]
[1646627152408,1.45746735,37921.0,37920.0,22.22433957]
[1646627152809,1.46803435,37921.0,37920.0,21.65088583]
[1646627153206,1.45746735,37921.0,37920.0,21.65088583]
[1646627153406,1.75720353,37921.0,37920.0,21.42717321]
[1646627153647,1.90957402,37921.0,37920.0,21.42717321]
[1646627153846,1.75720353,37921.0,37920.0,21.42717321]
[1646627154346,1.65720335,37921.0,37920.0,21.42717321]
[1646627154746,1.45693953,37921.0,37920.0,21.42717321]
[1646627155149,1.45693936,37921.0,37920.0,21.42717321]
[1646627155345,1.44403,37921.0,37920.0,21.42717321]
[1646627155547,1.29113,37921.0,37920.0,21.42717321]
[1646627156146,0.79113,37921.0,37920.0,21.42735339]
[1646627159708,0.79713,37921.0,37920.0,21.42735339]
[1646627161146,0.79113,37921.0,37920.0,21.42735339]
[1646627163746,0.79413,37921.0,37920.0,21.42735339]
[1646627164901,0.79113,37921.0,37920.0,21.42735339]
[1646627169648,0.79513,37921.0,37920.0,21.42735339]
[1646627170348,0.79513,37921.0,37920.0,21.32735339]
[1646627170949,0.79113,37921.0,37920.0,21.32735339]
[1646627171550,0.79113,37921.0,37920.0,21.32729004]
[1646627171751,0.84703,37921.0,37920.0,20.61050355]
[1646627172899,0.84703,37921.0,37920.0,20.8549398]
[1646627173101,0.84403,37921.0,37920.0,20.8549398]
[1646627173704,0.84903,37921.0,37920.0,20.8549398]
[1646627175000,0.84403,37921.0,37920.0,20.8549398]
[1646627175905,0.84903,37921.0,37920.0,20.8549398]
[1646627177069,0.84403,37921.0,37920.0,20.8549398]
[1646627177965,0.85003,37921.0,37920.0,20.8549398]
[1646627178365,0.85003,37921.0,37920.0,20.61050355]
[1646627178666,0.85003,37921.0,37920.0,20.55999876]
[1646627179064,0.84403,37921.0,37920.0,20.55999876]
[1646627179898,0.85003,37921.0,37920.0,20.55999876]
[1646627180997,0.84403,37921.0,37920.0,20.55999876]
[1646627181900,0.85003,37921.0,37920.0,20.55999876]
[1646627183103,0.84403,37921.0,37920.0,20.55999876]
[1646627183750,0.85003,37921.0,37920.0,20.55999876]
[1646627184148,0.79713,37921.0,37920.0,20.55999876]
[1646627185754,0.80313,37921.0,37920.0,20.55999876]
[1646627186155,0.80319077,37921.0,37920.0,20.55999876]
[1646627187156,0.85609077,37921.0,37920.0,20.55999876]
[1646627187594,0.84409077,37921.0,37920.0,20.55999876]
[1646627187800,0.85009077,37921.0,37920.0,20.55999876]
[1646627189197,0.84409077,37921.0,37920.0,20.55999876]
[1646627189395,0.83674397,37921.0,37920.0,20.55999876]
[1646627189796,0.84274397,37921.0,37920.0,20.55999876]
[1646627190797,0.78984397,37921.0,37920.0,20.55999876]
[1646627191067,0.21046214,37921.0,37920.0,20.55999876]
[1646627191765,0.26850023,37927.0,37920.0,20.55999876]
[1646627191968,0.26850023,37927.0,37925.0,0.19044811]
[1646627192164,0.26927797,37928.0,37925.0,0.19044811]
[1646627192366,0.26850023,37927.0,37925.0,0.19044811]
[1646627192565,0.26850023,37927.0,37921.0,0.32891676]
[1646627193066,1.26119829,37931.0,37920.0,20.55999876]
[1646627193067,0.26850023,37926.0,37920.0,20.55999876]
[1646627193266,0.32217241,37927.0,37920.0,20.55999876]
[1646627193566,0.16274041,37926.0,37920.0,20.55999876]
[1646627193768,0.16274041,37926.0,37921.0,0.33085436]
[1646627194365,0.32717241,37927.0,37921.0,0.33085436]
[1646627194567,0.005,37927.0,37921.0,0.33085436]
[1646627195000,0.32217241,37928.0,37921.0,0.33085436]
[1646627195401,0.33273641,37928.0,37923.0,0.15868863]
[1646627195601,0.32217241,37928.0,37923.0,0.15868863]
[1646627196000,0.32217241,37928.0,37923.0,0.15881001]
[1646627196201,0.32217241,37927.0,37923.0,0.15881001]
[1646627197502,0.12131082,37930.0,37923.0,0.15881001]
[1646627197503,0.32217241,37928.0,37923.0,0.15881001]
[1646627198203,0.26855904,37925.0,37923.0,0.15881001]
[1646627199046,0.26855904,37925.0,37923.0,0.00012138]
[1646627200247,0.26855904,37924.0,37923.0,0.00012138]
[1646627201454,0.26855904,37924.0,37921.0,0.3309754]
[1646627201650,0.26855904,37924.0,37921.0,0.00012104]
[1646627201853,0.27155904,37924.0,37921.0,0.3309754]
[1646627203200,0.32217241,37926.0,37921.0,0.3309754]
[1646627203402,0.063464,37925.0,37921.0,0.3309754]
[1646627203600,0.0529,37925.0,37921.0,0.3309754]
[1646627205907,0.0529,37925.0,37923.0,0.17377277]
[1646627206154,0.37590385,37929.0,37924.0,0.72100236]
[1646627206155,0.32217241,37929.0,37924.0,0.72100236]
[1646627206355,0.32217241,37930.0,37925.0,0.390148]
[1646627206554,1.20825161,37931.0,37926.0,0.33085436]
[1646627207153,1.20727241,37931.0,37926.0,0.33085436]
[1646627207355,1.20759244,37931.0,37926.0,0.33085436]
[1646627207555,0.88529586,37931.0,37926.0,0.33085436]
[1646627208355,0.8851,37931.0,37926.0,0.33085436]
[1646627208556,0.88529586,37931.0,37926.0,0.33085436]
[1646627208956,0.88529586,37931.0,37924.0,0.33085436]
[1646627209565,0.8851,37931.0,37924.0,0.33085436]
[1646627209813,0.88529586,37931.0,37924.0,0.33085436]
[1646627210611,0.8851,37931.0,37924.0,0.33085436]
[1646627211013,0.89585786,37931.0,37924.0,0.33085436]
[1646627211411,0.88529586,37931.0,37924.0,0.33085436]
[1646627211613,0.88529586,37931.0,37928.0,0.00012054]
[1646627211914,0.81340858,37941.0,37940.0,18.20125615]
[1646627212118,0.73643944,37941.0,37940.0,17.34140159]
[1646627212312,0.98643944,37941.0,37940.0,17.34140159]
[1646627212512,0.88643944,37941.0,37940.0,17.34140159]
[1646627212911,0.93933944,37941.0,37940.0,17.34140159]
[1646627214649,1.03933944,37941.0,37940.0,17.34140159]
[1646627215046,1.23933944,37941.0,37940.0,17.34140159]
[1646627215246,1.18933944,37941.0,37940.0,17.34140159]
[1646627215446,1.08933944,37941.0,37940.0,17.34140159]
[1646627215747,1.18933944,37941.0,37940.0,17.34140159]
[1646627215947,1.19433944,37941.0,37940.0,17.34140159]
[1646627216145,1.09433944,37941.0,37940.0,17.3415201]
[1646627216346,1.14433944,37941.0,37940.0,17.3415201]
[1646627216746,0.94433944,37941.0,37940.0,17.3415201]
[1646627216949,1.14433944,37941.0,37940.0,17.3415201]
[1646627217151,1.13933944,37941.0,37940.0,17.3415201]
[1646627217913,1.14433944,37941.0,37940.0,17.3415201]
[1646627218112,0.94433944,37941.0,37940.0,17.3415201]
[1646627218315,1.09433944,37941.0,37940.0,17.3415201]
[1646627218613,0.74023086,37941.0,37940.0,17.3415201]
[1646627218814,0.75079286,37941.0,37940.0,17.3415201]
[1646627219214,0.74023086,37941.0,37940.0,17.3415201]
[1646627219818,0.73523086,37941.0,37940.0,17.3415201]
[1646627220016,0.74023086,37941.0,37940.0,17.3415201]
[1646627221260,0.63523086,37941.0,37940.0,17.3415201]
[1646627221751,0.63523086,37941.0,37940.0,17.34072809]
[1646627222152,0.63523086,37941.0,37940.0,16.48087077]
[1646627222358,0.554,37941.0,37940.0,16.48087077]
[1646627222754,0.575123,37941.0,37940.0,16.48087077]
[1646627223056,0.075123,37941.0,37940.0,16.48087077]
[1646627223252,0.054,37941.0,37940.0,16.48087077]
[1646627223454,0.049,37941.0,37940.0,16.48087077]
[1646627224920,0.099,37941.0,37940.0,16.48087077]
[1646627225315,0.199,37941.0,37940.0,16.48087077]
[1646627225815,0.099,37941.0,37940.0,16.48087077]
[1646627226215,0.049,37941.0,37940.0,16.48087077]
[1646627226717,0.059562,37941.0,37940.0,16.48087077]
[1646627227118,0.049,37941.0,37940.0,16.48087077]
[1646627228550,0.07610156,37941.0,37940.0,16.48087077]
[1646627229451,0.0033,37954.0,37951.0,10.15335796]
[1646627229653,3.37707979,37952.0,37951.0,9.1501759]
[1646627229855,3.54831032,37952.0,37951.0,9.1501759]
[1646627230054,3.34824473,37952.0,37951.0,9.1501759]
[1646627230453,2.65970173,37952.0,37951.0,9.1501759]
[1646627230653,3.48822473,37952.0,37951.0,9.1501759]
[1646627230854,2.68082473,37952.0,37951.0,9.1501759]
[1646627231052,2.65944544,37952.0,37951.0,9.1501759]
[1646627231252,2.54520194,37952.0,37951.0,9.1501759]
[1646627231453,2.55549177,37952.0,37951.0,9.1501759]
[1646627231953,3.36289177,37952.0,37951.0,9.1501759]
[1646627232154,2.55549177,37952.0,37951.0,9.1501759]
[1646627233404,3.36289177,37952.0,37951.0,9.1501759]
[1646627233708,2.55549177,37952.0,37951.0,9.1501759]
[1646627234605,3.06005864,37952.0,37951.0,9.1501759]
[1646627234808,2.56605277,37952.0,37951.0,9.1501759]
[1646627235006,2.55549177,37952.0,37951.0,9.1501759]
[1646627236057,2.45949177,37952.0,37951.0,9.15027589]
[1646627236257,2.55949177,37952.0,37951.0,9.15027589]
[1646627236657,2.45949177,37952.0,37951.0,9.15027589]
[1646627236856,2.55949177,37952.0,37951.0,9.15027589]
[1646627237358,2.55549177,37952.0,37951.0,9.15027589]
[1646627237760,2.55549177,37952.0,37951.0,8.14716105]
[1646627238560,2.57661377,37952.0,37951.0,8.14716105]
[1646627238763,3.38401377,37952.0,37951.0,8.14716105]
[1646627238961,2.57661377,37952.0,37951.0,8.14716105]
[1646627240028,3.38401377,37952.0,37951.0,8.14716105]
[1646627240629,2.57661377,37952.0,37951.0,8.14716105]
[1646627242129,2.57961377,37952.0,37951.0,8.14716105]
[1646627243132,3.38701377,37952.0,37951.0,8.14716105]
[1646627243332,2.57661377,37952.0,37951.0,8.14716105]
[1646627244349,3.06005864,37952.0,37951.0,8.14716105]
[1646627244548,3.86745864,37952.0,37951.0,8.14716105]
[1646627244751,4.01583209,37952.0,37951.0,8.14716105]
[1646627245752,4.01583209,37952.0,37951.0,7.33244495]
[1646627245952,3.89460156,37952.0,37951.0,7.33244495]
[1646627248103,3.39460156,37952.0,37951.0,7.33244495]
[1646627248501,2.10375669,37952.0,37951.0,7.33244495]
[1646627248703,2.1033069,37952.0,37951.0,7.33244495]
[1646627249102,3.08672939,37952.0,37951.0,7.33244495]
[1646627249303,2.6033069,37952.0,37951.0,7.33244495]
[1646627249703,3.09072874,37952.0,37951.0,7.33244495]
[1646627249901,2.6073069,37952.0,37951.0,7.33244495]
[1646627251049,2.6033069,37952.0,37951.0,7.33244495]
[1646627252050,2.6083069,37952.0,37951.0,7.33244495]
[1646627252653,3.4157069,37952.0,37951.0,6.93669895]
[1646627253255,2.6083069,37952.0,37951.0,6.93669895]
[1646627254054,2.6063069,37952.0,37951.0,6.93669895]
[1646627254256,3.4137069,37952.0,37951.0,6.93669895]
[1646627254656,3.3925849,37952.0,37951.0,6.44661527]
[1646627254941,3.3925849,37952.0,37951.0,3.81123236]
[1646627255132,3.81232765,37952.0,37951.0,3.22400411]
[1646627255338,3.80932765,37952.0,37951.0,3.22400411]
[1646627255533,0.8074,37948.0,37942.0,0.00011199]
[1646627255736,0.07073551,37932.0,37929.0,0.47255286]
[1646627255938,0.0529,37931.0,37929.0,0.1247]
[1646627256132,0.19993441,37930.0,37924.0,0.54099786]
[1646627256333,0.0529,37929.0,37924.0,0.005345]